bitfinex/quotes_ETHUSD_20250630
["timestamp","ask_amount","ask_price","bid_price","bid_amount"]
[1751301057364,4.05317769,2467.2,2467.1,6.9784]
[1751301057595,4.05310143,2467.3,2467.1,8.90875]
[1751301058104,4.05317769,2467.2,2467.1,8.90875]
[1751301058269,4.05317769,2467.2,2467.1,6.9784]
[1751301059568,4.05317769,2467.2,2467.1,0.2024]
[1751301059999,4.05317769,2467.2,2467.1,6.9784]
[1751301060567,4.05317769,2467.2,2467.1,0.2024]
[1751301060798,4.05317769,2467.2,2467.1,6.9784]
[1751301061600,4.8046654,2467.5,2467.1,6.9784]
[1751301061779,4.05294654,2467.4,2467.1,6.9784]
[1751301061979,4.05294654,2467.4,2467.1,6.776]
[1751301062181,4.05294654,2467.4,2467.3,0.2024]
[1751301062479,0.7519,2467.5,2467.3,0.2024]
[1751301062683,4.05273838,2467.5,2467.4,6.775]
[1751301063203,4.0526849,2467.5,2467.4,6.775]
[1751301063409,6.27259121,2467.6,2467.4,6.775]
[1751301063573,4.0526849,2467.5,2467.4,6.775]
[1751301063969,2.22,2467.6,2467.4,6.9774]
[1751301064273,2.22,2467.6,2467.4,7.67514]
[1751301064881,2.22,2467.6,2467.4,9.48214]
[1751301065093,6.27252066,2467.6,2467.5,0.754]
[1751301065802,6.27252066,2467.6,2467.4,9.48214]
[1751301066502,4.0526849,2467.5,2467.4,9.48214]
[1751301066904,6.27260164,2467.6,2467.4,9.48214]
[1751301067110,2.22,2467.6,2467.4,9.48214]
[1751301067601,2.22,2467.6,2467.5,5.0797789]
[1751301067808,2.22,2467.6,2467.5,15.0797789]
[1751301068489,0.02,2467.6,2467.5,11.027094]
[1751301069803,4.07252066,2467.6,2467.5,11.027094]
[1751301070004,4.07252066,2467.6,2467.5,10.0]
[1751301070406,0.02,2467.6,2467.5,10.0]
[1751301073820,2.22,2467.6,2467.5,10.0]
[1751301074324,6.27252066,2467.6,2467.5,10.0]
[1751301074902,6.27252066,2467.6,2467.5,16.773]
[1751301075423,4.0526849,2467.5,2467.4,0.2024]
[1751301076006,4.0526849,2467.5,2467.4,6.9744]
[1751301076437,4.05334198,2467.1,2467.0,1.827]
[1751301076740,4.05323462,2467.2,2467.0,8.599]
[1751301077107,4.05323462,2467.2,2467.1,0.2024]
[1751301077488,4.05308099,2467.3,2467.1,0.2024]
[1751301077694,4.05282519,2467.5,2467.1,1.08254]
[1751301077915,4.05291272,2467.4,2467.1,1.08254]
[1751301078119,4.05291272,2467.4,2467.1,0.88014]
[1751301078315,4.05275774,2467.5,2467.3,0.2024]
[1751301078623,4.05275774,2467.5,2467.4,6.772]
[1751301079022,2.22,2467.6,2467.4,6.772]
[1751301079222,2.22,2467.6,2467.4,7.95608005]
[1751301079521,6.272636,2467.6,2467.5,0.2024]
[1751301079904,2.22,2467.6,2467.5,0.2024]
[1751301080305,6.27252066,2467.6,2467.5,0.2024]
[1751301080829,2.22,2467.6,2467.5,0.2024]
[1751301081125,6.27252066,2467.6,2467.5,0.2024]
[1751301082833,2.22,2467.6,2467.5,0.2024]
[1751301083739,2.22,2467.6,2467.5,0.90084314]
[1751301083905,2.22,2467.6,2467.5,10.90084314]
[1751301084304,2.22,2467.6,2467.5,16.76052804]
[1751301084615,2.22,2467.6,2467.5,12.70784314]
[1751301085424,0.02,2467.6,2467.5,17.56612804]
[1751301086738,0.02,2467.6,2467.5,28.81178335]
[1751301086961,0.02,2468.0,2467.9,15.40762804]
[1751301087238,0.02,2468.5,2468.3,4.85694458]
[1751301087412,0.02,2468.5,2468.4,12.82760725]
[1751301087938,0.02,2468.5,2468.4,22.82760725]
[1751301088705,0.02,2468.5,2468.4,23.37760725]
[1751301089220,0.02,2469.0,2468.5,14.85664314]
[1751301089425,0.02,2469.0,2468.5,18.86996738]
[1751301089821,0.02,2469.0,2468.5,19.41996738]
[1751301091310,0.02,2469.0,2468.9,4.60038681]
[1751301091525,0.02,2469.5,2469.4,0.7732]
[1751301091834,0.02,2469.5,2469.4,9.5466]
[1751301092032,0.02,2469.5,2469.4,10.90623107]
[1751301092357,0.02,2469.5,2469.4,14.95579776]
[1751301093037,0.02,2469.5,2469.4,10.90623107]
[1751301093225,0.02,2469.5,2469.4,14.95579776]
[1751301093625,0.02,2469.5,2469.4,10.90623107]
[1751301096135,0.02,2469.5,2469.4,20.90623107]
[1751301096350,0.7975,2470.3,2469.6,4.04916893]
[1751301096573,4.04860753,2470.0,2469.7,18.16891689]
[1751301096922,4.04860753,2470.0,2469.9,0.2024]
[1751301097124,0.8175,2470.5,2469.9,9.533]
[1751301097353,4.04804355,2470.4,2469.9,15.87794912]
[1751301097572,4.04798846,2470.4,2469.9,15.8778725]
[1751301097851,4.86535709,2470.5,2470.3,0.2016]
[1751301098051,4.06776361,2470.5,2470.4,6.764]
[1751301098569,4.06776361,2470.5,2470.4,8.566]
[1751301098570,0.02,2470.5,2470.4,8.566]
[1751301099268,0.02,2470.5,2470.4,9.3915]
[1751301099638,0.02,2470.5,2470.4,10.75562816]
[1751301100143,4.06776361,2470.5,2470.4,10.75562816]
[1751301100344,4.06782639,2470.5,2470.4,8.564]
[1751301100862,0.02,2470.5,2470.4,8.564]
[1751301101426,4.06776361,2470.5,2470.4,8.564]
[1751301102238,4.0479724,2470.4,2470.0,10.7567]
[1751301102438,4.04820484,2470.3,2470.1,10.29341167]
[1751301102850,4.04820484,2470.3,2470.1,1.73041167]
[1751301103051,4.04820484,2470.3,2470.2,18.563]
[1751301103639,4.04841909,2470.1,2469.8,1.3512]
[1751301103850,4.04841909,2470.1,2469.9,8.563]
[1751301104030,4.04858299,2470.0,2469.9,2.07691169]
[1751301104238,4.04858299,2470.0,2469.9,18.563]
[1751301104560,4.04858299,2470.0,2469.9,8.562]
[1751301104964,4.04850578,2470.1,2469.9,8.562]
[1751301105179,4.04858299,2470.0,2469.9,1.802]
[1751301105326,4.04858299,2470.0,2469.9,8.561]
[1751301106069,4.04899572,2469.8,2469.6,0.8268]
[1751301106233,4.04899572,2469.8,2469.7,8.561]
[1751301106432,4.04883883,2469.9,2469.7,8.561]
[1751301107053,4.04891084,2469.8,2469.7,8.561]
[1751301107239,4.04891084,2469.8,2469.6,1.90948]
[1751301107568,4.04891084,2469.8,2469.7,8.561]
[1751301107779,4.04891084,2469.8,2469.7,9.608048]
[1751301107941,4.04891084,2469.8,2469.7,1.047048]
[1751301108144,4.04891084,2469.8,2469.7,1.802]
[1751301108337,4.04931639,2469.6,2469.4,0.8268]
[1751301108537,4.04931639,2469.6,2469.5,18.56]
[1751301108739,4.04915935,2469.7,2469.5,8.56]
[1751301108934,4.04915935,2469.7,2469.5,10.90365184]
[1751301109150,4.04882663,2469.9,2469.6,10.0]
[1751301109558,4.04907478,2469.7,2469.6,10.0]
[1751301109755,4.04898616,2469.8,2469.6,10.0]
[1751301110284,4.04898616,2469.8,2469.7,0.2024]
[1751301110665,4.04898616,2469.8,2469.7,6.9604]
[1751301111569,0.01,2470.0,2469.7,9.07100518]
[1751301111778,4.05861091,2470.0,2469.7,9.07100518]
[1751301111972,4.05861091,2470.0,2469.9,0.2024]
[1751301112175,4.05861091,2470.0,2469.9,6.9604]
[1751301113896,4.82370804,2470.3,2469.9,6.9604]
[1751301114093,4.04865685,2470.0,2469.9,6.9604]
[1751301114306,4.04865685,2470.0,2469.9,6.758]
[1751301114474,4.04865685,2470.0,2469.9,6.9604]
[1751301115090,4.04865685,2470.0,2469.9,0.2024]
[1751301115258,4.04865685,2470.0,2469.9,6.9594]
[1751301116967,4.04851786,2470.1,2469.9,7.83514]
[1751301117697,4.04835162,2470.2,2469.9,7.83514]
[1751301117893,4.04835162,2470.2,2469.9,7.63274]
[1751301118196,4.04842501,2470.1,2469.9,7.63274]
[1751301118396,4.04833584,2470.2,2470.1,0.2024]
[1751301120985,4.04833584,2470.2,2470.1,6.9574]
[1751301121186,4.04833584,2470.2,2470.1,0.2024]
[1751301121398,4.04891084,2469.8,2469.7,1.798]
[1751301121562,4.04891084,2469.8,2469.7,8.553]
[1751301121766,4.04923874,2469.6,2469.5,1.818]
[1751301122006,4.04923874,2469.6,2469.5,18.573]
[1751301122167,4.04923874,2469.6,2469.5,18.7754]
[1751301122494,4.04923874,2469.6,2469.5,0.02]
[1751301122695,4.12663874,2469.6,2469.5,0.02]
[1751301127837,6.32663874,2469.6,2469.5,0.02]
[1751301128008,2.2,2469.6,2469.5,0.2224]
[1751301128673,2.2,2469.6,2469.5,2.73264]
[1751301130104,2.2,2469.6,2469.5,6.78204271]
[1751301130975,2.2,2469.6,2469.5,7.33204271]
[1751301131620,4.04819099,2470.3,2469.9,4.85093924]
[1751301131821,4.04796362,2470.4,2470.0,10.80157875]
[1751301132025,4.04796362,2470.4,2470.2,0.2024]
[1751301132196,4.06781129,2470.5,2470.2,0.2024]
[1751301132705,4.06781129,2470.5,2470.4,0.2016]
[1751301132912,4.06781129,2470.5,2470.4,6.9546]
[1751301133720,4.06776361,2470.5,2470.4,6.9546]
[1751301135221,0.02,2470.5,2470.4,7.65006]
[1751301136918,0.02,2470.5,2470.4,14.04598746]
[1751301137519,0.02,2470.5,2470.4,36.06294277]
[1751301141523,0.01,2470.8,2470.7,4.59743594]
[1751301141728,0.01,2470.8,2470.7,12.14243594]
[1751301142026,0.01,2470.8,2470.7,15.3678121]
[1751301142851,0.01,2470.8,2470.7,25.3678121]
[1751301143236,0.01,2471.3,2471.2,1.3205]
[1751301143539,0.01,2471.3,2471.2,10.0671]
[1751301145134,0.01,2471.3,2471.2,1.5221]
[1751301145360,4.05645328,2471.3,2471.2,11.21831]
[1751301146036,0.01,2471.3,2471.2,11.21831]
[1751301146722,4.05645328,2471.3,2471.2,9.89781]
[1751301146906,4.05645328,2471.3,2471.2,1.35381]
[1751301147111,4.05645328,2471.3,2471.2,9.89181]
[1751301148424,4.05645328,2471.3,2471.2,1.35381]
[1751301148623,4.14385328,2471.3,2471.2,6.9476]
[1751301149615,4.14385328,2471.3,2471.2,6.9466]
[1751301150400,4.04694455,2471.0,2470.9,1.792]
[1751301150621,4.04694455,2471.0,2470.9,8.537]
[1751301150834,4.04694455,2471.0,2470.9,8.7386]
[1751301151336,4.04681934,2471.1,2470.9,9.61246]
[1751301151337,4.04688964,2471.1,2470.9,9.61246]
[1751301151516,4.04672982,2471.2,2470.9,9.61246]
[1751301151926,4.04672982,2471.2,2471.1,0.2016]
[1751301154364,4.0564654,2471.3,2471.1,0.2016]
[1751301154365,0.01,2471.3,2471.1,0.2016]
[1751301154517,0.01,2471.3,2471.2,6.744]
[1751301155253,4.05645328,2471.3,2471.2,6.744]
[1751301157357,0.01,2471.3,2471.2,6.744]
[1751301158232,4.05645328,2471.3,2471.2,6.744]
[1751301158728,0.01,2471.3,2471.2,11.34061702]
[1751301158940,0.01,2471.3,2471.2,23.49684362]
[1751301164332,0.01,2471.3,2471.2,25.10532065]
[1751301164639,0.01,2471.3,2471.2,18.36132065]
[1751301164868,0.01,2471.3,2471.2,23.49384362]
[1751301165063,0.01,2471.3,2471.2,25.10232065]
[1751301165405,0.01,2471.3,2471.2,25.91901658]
[1751301165965,0.01,2471.3,2471.2,30.8325099]
[1751301166460,0.01,2471.3,2471.2,24.0915099]
[1751301166767,0.01,2471.3,2471.2,32.6235099]
[1751301168864,0.01,2471.3,2471.2,21.2382266]
[1751301169069,4.05645328,2471.3,2471.2,10.0]
[1751301169276,4.04661702,2471.2,2471.1,3.60769116]
[1751301169468,4.04661702,2471.2,2471.1,18.7326]
[1751301169666,4.04661702,2471.2,2471.1,0.2016]
[1751301169870,4.04661702,2471.2,2471.1,6.9396]
[1751301170053,4.04661702,2471.2,2471.1,0.2016]
[1751301170054,4.13401702,2471.2,2471.1,0.2016]
[1751301170443,6.33401702,2471.2,2471.1,6.9396]
[1751301173978,6.33401702,2471.2,2471.1,0.2016]
[1751301174283,4.13450834,2470.9,2470.8,0.02]
[1751301174588,4.13450834,2470.9,2470.8,6.758]
[1751301174882,4.13450834,2470.9,2470.8,6.9596]
[1751301175267,4.13450834,2470.9,2470.8,0.2216]
[1751301175678,4.13450834,2470.9,2470.8,6.9586]
[1751301175891,4.04694455,2471.0,2470.8,7.83366]
[1751301176112,4.04710834,2470.9,2470.8,6.757]
[1751301176452,4.04710834,2470.9,2470.8,6.9586]
[1751301176678,4.04710834,2470.9,2470.8,0.2216]
[1751301176884,4.04710834,2470.9,2470.8,6.9586]
[1751301179564,4.04710834,2470.9,2470.8,6.9586]
[1751301179763,4.13450834,2470.9,2470.8,6.9586]
[1751301180589,0.0874,2471.1,2470.8,6.9586]
[1751301180889,0.0874,2471.1,2470.8,7.65446]
[1751301180890,4.04691211,2471.1,2470.8,7.65446]
[1751301181201,4.04691211,2471.1,2471.0,0.2016]
[1751301183187,6.24671683,2471.2,2471.0,0.2016]
[1751301183760,4.04678078,2471.1,2471.0,0.2016]
[1751301184192,6.24670448,2471.2,2471.0,0.2016]
[1751301184576,2.2,2471.2,2471.0,0.2016]
[1751301184778,6.24664058,2471.2,2471.0,0.2016]
[1751301184980,4.04678078,2471.1,2471.0,0.2016]
[1751301185298,2.2,2471.2,2471.0,0.2016]
[1751301185470,0.0974,2471.3,2471.0,0.2016]
[1751301185471,0.01,2471.3,2471.1,4.04678078]
[1751301185671,0.01,2471.3,2471.2,7.33953808]
[1751301185866,0.01,2471.3,2471.2,6.9376]
[1751301186301,4.05645328,2471.3,2471.2,6.9376]
[1751301187109,4.14385328,2471.3,2471.2,6.9366]
[1751301187401,6.34385328,2471.3,2471.2,6.9366]
[1751301187600,0.01,2471.3,2471.2,6.9366]
[1751301187772,0.01,2471.3,2471.2,7.80896]
[1751301189590,0.01,2471.3,2471.2,13.17887702]
[1751301189796,0.01,2471.3,2471.2,9.13226]
[1751301190104,0.01,2471.3,2471.2,13.17887702]
[1751301191305,0.01,2471.3,2471.2,23.17887702]
[1751301193596,0.01,2471.3,2471.2,24.79296818]
[1751301196104,0.01,2471.6,2471.5,14.59612583]
[1751301196304,0.01,2471.6,2471.5,31.44399211]
[1751301197311,0.01,2471.6,2471.5,33.05566702]
[1751301197877,0.01,2471.8,2471.5,33.05566702]
[1751301197878,0.01,2471.8,2471.7,4.83439843]
[1751301198084,0.01,2472.3,2472.2,5.38358017]
[1751301198311,0.01,2472.3,2472.2,24.43993819]
[1751301198513,0.01,2472.3,2472.2,24.64153819]
[1751301198982,0.01,2472.3,2472.2,20.59655802]
[1751301199719,0.01,2472.3,2472.2,6.9326]
[1751301199720,4.05481656,2472.3,2472.2,6.9326]
[1751301199905,4.05481656,2472.3,2472.2,0.2016]
[1751301200105,4.14221656,2472.3,2472.2,0.2016]
[1751301200400,4.14221656,2472.3,2471.9,1.787]
[1751301200401,4.04522079,2472.1,2471.9,1.787]
[1751301200606,4.04517926,2472.1,2471.9,1.787]
[1751301200812,4.04517926,2472.1,2472.0,6.9316]
[1751301203384,4.04517926,2472.1,2472.0,6.9306]
[1751301203586,4.13257926,2472.1,2472.0,6.9306]
[1751301203786,4.13257926,2472.1,2472.0,0.2016]
[1751301204006,4.04612583,2471.5,2471.4,1.787]
[1751301204211,4.04645004,2471.4,2471.3,1.787]
[1751301204412,4.04620694,2471.5,2471.3,10.6677]
[1751301204629,4.04620694,2471.5,2471.3,10.8693]
[1751301204985,4.04628955,2471.4,2471.3,0.2016]
[1751301205216,4.04628955,2471.4,2471.3,6.9296]
[1751301207392,0.2016,2471.9,2471.3,6.9296]
[1751301207593,2.2,2471.4,2471.3,6.728]
[1751301208016,4.04613498,2471.5,2471.3,6.9296]
[1751301208316,4.04572378,2471.8,2471.4,0.755]
[1751301208486,0.0874,2472.1,2471.4,0.755]
[1751301208686,0.0874,2472.1,2471.7,0.2016]
[1751301208883,4.13261785,2472.1,2472.0,0.2016]
[1751301209085,0.01,2472.3,2472.0,0.2016]
[1751301209328,4.05489267,2472.3,2472.2,0.2016]
[1751301209684,4.05489267,2472.3,2472.2,6.9286]
[1751301210588,4.05489267,2472.3,2472.2,0.2016]
[1751301210790,0.289,2472.2,2472.0,6.727]
[1751301211005,4.04530721,2472.1,2472.0,6.727]
[1751301211214,4.04530721,2472.1,2472.0,6.9286]
[1751301212945,6.24530721,2472.1,2472.0,6.9286]
[1751301213125,4.04530721,2472.1,2472.0,6.9286]
[1751301216824,4.04571462,2471.8,2471.7,6.725]
[1751301217205,4.04597949,2471.6,2471.4,10.0]
[1751301217407,0.0874,2471.7,2471.2,1.782]
[1751301217752,4.13322641,2471.7,2471.6,0.2016]
[1751301222841,4.04582641,2471.7,2471.6,0.2016]
[1751301223834,5.82698509,2472.2,2471.6,0.9916]
[1751301224013,4.04579006,2471.8,2471.6,0.79]
[1751301224216,4.04579006,2471.8,2471.7,0.2016]
[1751301224463,4.04553705,2471.9,2471.7,0.2016]
[1751301224649,4.04563476,2471.8,2471.7,0.2016]
[1751301226153,4.04596212,2471.6,2471.5,0.02]
[1751301226655,4.04596212,2471.6,2471.5,0.2216]
[1751301229554,4.04596212,2471.6,2471.5,0.02]
[1751301229939,4.13336212,2471.6,2471.5,0.02]
[1751301232650,14.13336212,2471.6,2471.5,0.02]
[1751301234022,14.68336212,2471.6,2471.5,0.02]
[1751301234524,16.88336212,2471.6,2471.5,0.02]
[1751301235325,14.13401702,2471.2,2471.1,0.02]
[1751301235526,15.91601702,2471.2,2471.1,0.02]
[1751301239829,16.46601702,2471.2,2471.1,0.02]
[1751301240167,16.46601702,2471.2,2470.8,0.02]
[1751301240168,4.59710834,2470.9,2470.8,0.02]
[1751301240325,26.29557591,2470.9,2470.8,0.02]
[1751301240659,34.79657591,2470.9,2470.8,0.02]
[1751301240839,22.54810834,2470.9,2470.8,0.02]
[1751301241455,22.63550834,2470.9,2470.8,0.02]
[1751301242228,14.13450834,2470.9,2470.8,0.02]
[1751301242759,15.91350834,2470.9,2470.8,0.02]
[1751301243262,4.59743594,2470.7,2470.6,0.02]
[1751301243426,34.38934662,2470.7,2470.6,0.02]
[1751301244161,34.69031438,2470.7,2470.6,0.02]
[1751301244362,26.18931438,2470.7,2470.6,0.02]
[1751301244562,34.69031438,2470.7,2470.6,0.02]
[1751301244754,15.91383594,2470.7,2470.6,0.02]
[1751301246058,5.91383594,2470.7,2470.6,0.02]
[1751301246662,12.63683594,2470.7,2470.6,0.02]
[1751301246839,23.18683594,2470.7,2470.6,0.02]
[1751301247040,23.68179283,2470.7,2470.6,0.02]
[1751301247534,23.18683594,2470.7,2470.6,0.02]
[1751301247730,14.68483594,2470.7,2470.6,0.02]
[1751301248034,23.18583594,2470.7,2470.6,0.02]
[1751301249569,13.18583594,2470.7,2470.6,0.02]
[1751301249866,23.18583594,2470.7,2470.6,0.02]
[1751301250438,23.18683594,2470.7,2470.6,0.02]
[1751301254857,14.68483594,2470.7,2470.6,0.02]
[1751301255176,23.18583594,2470.7,2470.6,0.02]
[1751301256042,4.04743594,2470.7,2470.6,0.02]
[1751301256248,6.02803594,2470.7,2470.6,0.02]
[1751301256577,14.24903594,2470.7,2470.6,0.02]
[1751301257658,4.24903594,2470.7,2470.6,0.02]
[1751301258167,4.24903594,2470.7,2470.6,0.7747]
[1751301258168,4.04743594,2470.7,2470.6,0.7747]
[1751301261685,4.04743594,2470.7,2470.6,0.9763]
[1751301263673,4.05737237,2470.8,2470.6,0.9763]
[1751301263981,0.01,2470.8,2470.7,0.78]
[1751301264279,0.01,2470.8,2470.7,1.48923441]
[1751301264883,4.05727213,2470.8,2470.7,1.48923441]
[1751301265093,4.05727213,2470.8,2470.7,0.9823]
[1751301266461,0.01,2470.8,2470.7,0.9823]
[1751301267084,4.05727213,2470.8,2470.7,0.9823]
[1751301267474,0.01,2470.8,2470.7,0.9823]
[1751301269782,4.05727213,2470.8,2470.7,0.9823]
[1751301272869,0.01,2470.8,2470.7,0.9823]
[1751301273076,4.05727213,2470.8,2470.7,1.48930578]
[1751301273396,4.05727213,2470.8,2470.7,0.9823]
[1751301275807,0.01,2470.8,2470.7,0.9823]
[1751301275987,4.05727213,2470.8,2470.7,0.9823]
[1751301276864,4.05727213,2470.8,2470.7,0.2016]
[1751301279594,4.04743594,2470.7,2470.6,0.02]
[1751301280389,21.67923677,2470.7,2470.6,0.02]
[1751301280783,22.22923677,2470.7,2470.6,0.02]
[1751301280981,21.67923677,2470.7,2470.6,0.02]
[1751301281171,30.17123677,2470.7,2470.6,0.02]
[1751301281910,22.82843594,2470.7,2470.6,0.02]
[1751301284895,14.33643594,2470.7,2470.6,0.02]
[1751301285095,22.82743594,2470.7,2470.6,0.02]
[1751301285297,14.33643594,2470.7,2470.6,0.02]
[1751301285597,22.82843594,2470.7,2470.6,0.02]
[1751301285994,23.37843594,2470.7,2470.6,0.02]
[1751301287091,27.64443594,2470.7,2470.6,0.02]
[1751301287286,0.55,2470.4,2470.3,0.02]
[1751301287487,32.62721681,2470.4,2470.3,0.02]
[1751301287693,14.59874691,2469.9,2469.6,0.02]
[1751301287894,34.40403626,2469.9,2469.6,0.02]
[1751301288681,27.68903626,2469.9,2469.6,0.02]
[1751301288878,34.40403626,2469.9,2469.6,0.02]
[1751301290480,34.70688112,2469.9,2469.6,0.02]
[1751301290682,4.59907478,2469.7,2469.6,0.02]
[1751301290998,21.40147478,2469.7,2469.6,0.02]
[1751301291400,4.68683671,2469.5,2468.5,0.02]
[1751301291709,34.40585604,2469.4,2468.5,0.02]
[1751301293412,25.91385604,2469.4,2468.5,0.02]
[1751301293613,22.62896669,2469.4,2468.5,0.02]
[1751301293812,22.54156669,2469.4,2469.0,0.7618]
[1751301294716,14.04956669,2469.4,2469.0,0.7618]
[1751301294891,22.54256669,2469.4,2469.0,0.7618]
[1751301295094,22.54256669,2469.4,2469.0,0.9642]
[1751301295805,22.54256669,2469.4,2469.0,0.7618]
[1751301296695,24.74256669,2469.4,2469.0,0.7618]
[1751301298099,24.94596669,2469.4,2469.0,0.7618]
[1751301298300,18.22896669,2469.4,2469.0,0.9642]
[1751301298618,16.45196669,2469.4,2469.0,0.9642]
[1751301300137,16.24956669,2469.4,2469.1,0.2024]
[1751301300551,2.2,2469.4,2469.3,0.837]
[1751301300740,2.2,2469.4,2469.3,5.08913069]
[1751301300927,1.3667,2469.4,2469.3,6.00303175]
[1751301301428,1.3667,2469.4,2469.3,1.95330106]
[1751301301736,0.2024,2470.3,2469.3,1.95330106]
[1751301301737,4.04935466,2469.6,2469.3,1.95330106]
[1751301301928,4.04915786,2469.7,2469.3,1.95330106]
[1751301302128,4.04956669,2469.4,2469.3,0.837]
[1751301302520,4.04956669,2469.4,2469.3,1.0394]
[1751301305647,4.0494926,2469.5,2469.3,1.0394]
[1751301306014,4.04956669,2469.4,2469.3,1.0394]
[1751301306542,4.04930416,2469.6,2469.3,1.0394]
[1751301306741,4.04956669,2469.4,2469.3,1.0394]
[1751301308216,4.04956669,2469.4,2469.3,0.2224]
[1751301309753,4.04956669,2469.4,2469.3,0.02]
[1751301312850,6.24956669,2469.4,2469.3,0.02]
[1751301317326,6.24956669,2469.4,2469.3,0.01028744]
[1751301318227,16.24956669,2469.4,2469.3,0.01028744]
[1751301318463,22.96356669,2469.4,2469.3,0.01028744]
[1751301318637,23.78286669,2469.4,2469.3,0.01028744]
[1751301320556,24.73756669,2469.4,2469.3,0.01028744]
[1751301320730,16.24956669,2469.4,2469.3,0.01028744]
[1751301321042,18.22596669,2469.4,2469.3,0.01028744]
[1751301321245,16.45196669,2469.4,2469.3,0.01028744]
[1751301322566,6.45196669,2469.4,2469.3,0.01028744]
[1751301322861,6.45196669,2469.4,2469.3,0.21268744]
[1751301322862,6.24956669,2469.4,2469.3,0.21268744]
[1751301323085,6.24956669,2469.4,2469.3,1.02828744]
[1751301323429,2.2,2469.4,2469.3,1.02828744]
[1751301324036,2.2,2469.4,2469.3,1.53612161]
[1751301324434,2.2,2469.4,2469.3,5.5858523]
[1751301325066,2.2,2469.4,2469.3,1.53612161]
[1751301325763,1.3667,2469.4,2469.3,6.1358523]
[1751301326542,4.04850124,2470.1,2469.7,0.7847]
[1751301326744,4.04858585,2470.0,2469.9,0.7847]
[1751301327155,4.04858585,2470.0,2469.9,0.9871]
[1751301327367,4.04858585,2470.0,2469.9,0.2024]
[1751301330760,4.04891084,2469.8,2469.7,0.7811]
[1751301330960,4.05867461,2470.0,2469.7,0.7811]
[1751301331169,4.05867461,2470.0,2469.9,0.2024]
[1751301331684,0.01,2470.0,2469.9,0.9528]
[1751301331878,0.01,2470.0,2469.9,15.00154691]
[1751301332169,0.01,2470.0,2469.9,25.28927797]
[1751301332542,0.01,2470.0,2469.9,25.4906446]
[1751301333262,0.01,2470.4,2470.3,4.81079132]
[1751301333663,0.01,2470.4,2470.3,6.78239132]
[1751301334068,0.01,2470.4,2470.3,2.7343]
[1751301334402,0.01,2470.4,2470.3,3.81738458]
[1751301335052,0.01,2470.4,2470.3,7.8654759]
[1751301335453,0.01,2470.4,2470.3,3.81738458]
[1751301337562,2.21,2470.4,2470.3,3.81738458]
[1751301337760,6.25792746,2470.4,2470.3,2.7343]
[1751301337965,2.21,2470.4,2470.3,2.7343]
[1751301338686,6.25792746,2470.4,2470.3,2.7343]
[1751301338984,2.21,2470.4,2470.3,2.7343]
[1751301340385,6.25792746,2470.4,2470.3,2.7343]
[1751301340684,6.25792746,2470.4,2470.3,0.2016]
[1751301343766,4.04792746,2470.4,2470.3,0.2016]
[1751301347199,4.04785442,2470.5,2470.3,0.2016]
[1751301347764,4.04792746,2470.4,2470.3,0.2016]
[1751301351268,4.04769254,2470.6,2470.3,0.2016]
[1751301351498,4.04776384,2470.5,2470.3,0.2016]
[1751301351802,4.04794362,2470.4,2470.2,0.7751]
[1751301351989,4.04791267,2470.5,2470.4,0.2016]
[1751301352179,4.04763065,2470.6,2470.4,0.2016]
[1751301352970,4.04776361,2470.5,2470.4,0.2016]
[1751301353172,4.0475211,2470.7,2470.2,5.30570978]
[1751301353371,4.04753367,2470.7,2470.6,1.0172]
[1751301354198,4.05734836,2470.8,2470.6,1.0172]
[1751301354570,4.04743594,2470.7,2470.6,1.0172]
[1751301354774,0.01,2470.8,2470.6,1.0172]
[1751301355174,0.01,2470.8,2470.6,1.78932]
[1751301355775,0.01,2470.8,2470.6,5.83685633]
[1751301355976,0.01,2470.8,2470.7,4.04743594]
[1751301356387,0.01,2470.8,2470.7,4.59743594]
[1751301356588,0.01,2470.8,2470.7,5.42083594]
[1751301356787,0.01,2470.8,2470.7,6.46506273]
[1751301357307,0.01,2470.8,2470.7,2.41762679]
[1751301357505,0.01,2470.8,2470.7,1.3734]
[1751301357696,0.01,2470.8,2470.7,0.8234]
[1751301357697,4.05727213,2470.8,2470.7,0.8234]
[1751301358889,4.04743594,2470.7,2470.6,6.9046]
[1751301361620,4.05733363,2470.8,2470.6,6.9046]
[1751301361831,0.01,2470.8,2470.7,0.7728]
[1751301363415,4.05727213,2470.8,2470.7,0.7728]
[1751301363992,0.01,2470.8,2470.7,0.7728]
[1751301364880,4.05727213,2470.8,2470.7,0.7728]
[1751301365082,0.01,2470.8,2470.7,0.7728]
[1751301366295,4.05727213,2470.8,2470.7,0.7728]
[1751301367595,0.01,2470.8,2470.7,0.7728]
[1751301368136,4.05727213,2470.8,2470.6,0.2016]
[1751301368278,4.04743594,2470.7,2470.6,0.2016]
[1751301368987,4.87773594,2470.7,2470.6,0.2016]
[1751301369204,4.04809132,2470.3,2470.2,8.3093089]
[1751301369403,0.8303,2470.7,2470.5,0.2016]
[1751301369404,4.04745527,2470.7,2470.5,0.2016]
[1751301369604,4.04759977,2470.6,2470.3,0.754]
[1751301369784,4.04750844,2470.7,2470.6,0.2016]
[1751301369986,4.05737104,2470.8,2470.6,0.2016]
[1751301370303,4.04743594,2470.7,2470.6,0.2016]
[1751301370486,4.05737026,2470.8,2470.6,0.2016]
[1751301370888,4.05737026,2470.8,2470.7,0.8033]
[1751301371488,0.01,2470.8,2470.7,0.8033]
[1751301371893,0.01,2470.8,2470.7,1.57369]
[1751301373194,4.05727213,2470.8,2470.7,1.57369]
[1751301373391,4.05727213,2470.8,2470.7,0.8033]
[1751301374540,4.04743594,2470.7,2470.6,6.9006]
[1751301375101,4.05727213,2470.8,2470.6,6.9006]
[1751301375102,4.05737175,2470.8,2470.6,6.9006]